[Event "FIDE Candidates Tournament 2022"]
[Site "Madrid"]
[Date "2022.06.22"]
[Round "5.4"]
[White "Nakamura, Hikaru"]
[Black "Nepomniachtchi, Ian"]
[Result "1/2-1/2"]
[ECO "C42"]
[WhiteElo "2760"]
[BlackElo "2773"]
[Annotator "TA"]
[PlyCount "67"]
[EventDate "2022.06.17"]
[EventType "tourn"]
[EventCountry "ESP"]
[SourceTitle "playchess.com"]
[Source "ChessBase"]
[SourceQuality "1"]
[TimeControl "40/7200:20/3600:900+30"]

{[%evp 25,67,10,20,0,0,0,7,0,50,50,112,114,109,110,107,114,133,11,19,0,101,93,77,89,81,79,69,57,66,69,73,0,0,0,0,0,20,18,9,0,16,0,10,0]} 1. e4 {[%emt 0:00:04]} e5 {[%emt 0:00:06]} 2. Nf3 {[%emt 0:00:20]} Nf6 {[%emt 0:00:06]} 3. Nxe5 {[%emt 0:00:16]} d6 {[%emt 0:00:06]} 4. Nf3 {[%emt 0:00:03]} Nxe4 {[%emt 0:00:04]} 5. d4 {[%emt 0:00:23]} d5 {[%emt 0:00:18]} 6. Bd3 {[%emt 0:00:05]} Nc6 {[%emt 0:00:19]} 7. O-O {[%emt 0:00:48]} Be7 {[%emt 0:00:14]} 8. c4 {[%emt 0:01:04]} Nb4 {[%emt 0:02:17]} 9. Be2 {[%emt 0:02:05]} O-O {[%emt 0:00:10]} 10. Nc3 {[%emt 0:07:42]} Bf5 {[%emt 0:00:14]} 11. a3 {[%emt 0:00:21]} Nxc3 {[%emt 0:00:20]} 12. bxc3 {[%emt 0:00:04]} Nc6 {[%emt 0:00:07]} 13. Re1 {[%emt 0:00:03]} Re8 {[%emt 0:09:17]} 14. Ra2 {[%emt 0:00:26] C42: Petroff Defence: 3 Nxe5 and unusual White 3rd moves.} Bf8 {[%emt 0:16:27] [#]} 15. cxd5 $146 {[%emt 0:27:04]} ({Predecessor:} 15. a4 Ne7 16. Qb3 c6 17. Qxb7 Rb8 18. Qxa7 Rb1 19. Rb2 Nc8 20. Qa6 Rxb2 21. Bxb2 Qb6 22. Qxb6 Nxb6 {1-0 (48) Alekseenko,K (2590)-Lintchevski,D (2548) Khanty-Mansiysk 2017}) 15... Qxd5 {[%emt 0:00:34]} 16. c4 {[%emt 0:12:25]} Qe4 {[%emt 0:00:14]} (16... Qd6 $11) 17. Bf1 $14 {[%emt 0:21:38]} Qg4 {[%emt 0:01:23] [#]} ({Black should play} 17... Qb1 $14 18. Rxe8 Rxe8) 18. h3 $1 $16 {[%emt 0:01:55]} Rxe1 {[%emt 0:11:10]} 19. Qxe1 {[%emt 0:00:13]} Qe4 {[%emt 0:03:56]} 20. Re2 {[%emt 0:00:21]} Qd3 {[%emt 0:10:51] [#]} 21. Rb2 {[%emt 0:00:26]} (21. Nh4 $1 $16) 21... Qe4 $11 {[%emt 0:01:08]} 22. Re2 {[%emt 0:00:05]} (22. Qxe4 $11 Bxe4 23. Ng5 (23. Rxb7 Nxd4 24. Rxc7 Ne6 $11)) 22... Qd3 $16 {[%emt 0:00:05]} 23. Re3 {[%emt 0:10:45]} Qb1 {[%emt 0:00:25]} 24. d5 {[%emt 0:00:04]} Ne7 {[%emt 0:01:33]} 25. Nd2 {[%emt 0:04:47]} Qa1 {[%emt 0:02:46]} 26. Nb3 $1 {[%emt 0:04:17]} Qf6 {[%emt 0:00:10]} 27. Bd2 {[%emt 0:00:04] Bc3 is the strong threat.} Ng6 {[%emt 0:01:41]} 28. Na5 {[%emt 0:08:49]} ({Better is} 28. Bc3 $16 Qd8 29. Bb4 (29. Nd4 Bd7 $14)) 28... b6 $11 {[%emt 0:01:52] The position is equal.} 29. Nc6 {[%emt 0:00:17]} Bd7 {[%emt 0:00:48]} 30. Bc3 {[%emt 0:00:28]} Qd6 {[%emt 0:01:24]} 31. Bb4 {[%emt 0:00:18]} Qf6 {[%emt 0:00:48]} 32. Bc3 {[%emt 0:01:21]} Qd6 {[%emt 0:00:06]} 33. Bb4 {[%emt 0:04:30]} Qf6 {[%emt 0:00:53]} 34. Bc3 {[%emt 0:00:11] Weighted Error Value: White=0.21 (precise) /Black=0.06 (flawless)} 1/2-1/2

[Event "FIDE Candidates Tournament 2022"]
[Site "Madrid"]
[Date "2022.06.23"]
[Round "6.3"]
[White "Nakamura, Hikaru"]
[Black "Ding, Liren"]
[Result "1/2-1/2"]
[ECO "C54"]
[WhiteElo "2760"]
[BlackElo "2806"]
[Annotator "TA"]
[PlyCount "84"]
[EventDate "2022.06.17"]
[EventType "tourn"]
[EventCountry "ESP"]
[SourceTitle "playchess.com"]
[Source "ChessBase"]
[SourceQuality "1"]
[TimeControl "40/7200:20/3600:900+30"]

{[%evp 12,84,12,12,12,10,18,2,7,4,16,0,0,0,0,0,0,-10,0,0,0,0,0,-7,0,0,0,0,0,0,0,0,0,0,0,0,0,0,0,0,0,0,10,0,0,0,11,-8,-7,-4,-4,-12,-20,-22,-24,-25,0,0,0,0,0,0,0,0,0,0,0,0,0,0,0,0,0,0,0]} 1. e4 {[%emt 0:00:16] Giri,A} e5 {[%emt 0:00:05]} 2. Nf3 {[%emt 0:00:05]} Nc6 {[%emt 0:00:03]} 3. Bc4 {[%emt 0:00:08]} Nf6 {[%emt 0:00:12]} 4. d3 {[%emt 0:00:07]} Bc5 {[%emt 0:00:10]} 5. c3 {[%emt 0:00:10]} d6 {[%emt 0:00:04]} 6. O-O {[%emt 0:00:10]} O-O {[%emt 0:00:06]} 7. Re1 $1 {[%emt 0:00:07][%mdl 4] outshines the older 7.Bb3.} a5 {[%emt 0:00:24] C54: Giuoco Piano: 4 c3 Nf6, main lines with 5 d4 and 5 d3.} 8. h3 {[%emt 0:00:10]} h6 {[%emt 0:00:06]} 9. Nbd2 {[%emt 0:00:06]} Be6 {[%emt 0:00:08]} 10. Bb5 {[%emt 0:00:06]} (10. Bb3 Bxb3 11. axb3 Re8 12. Nf1 d5 13. Qe2 Bf8 14. g4 Qd7 15. Ng3 Rad8 16. g5 hxg5 17. Bxg5 Re6 18. Kg2 Be7 19. Nf5 Nh7 20. Be3 Bf8 21. Kh2 g6 {1-0 (42) Nakamura,H (2736)-Ding,L (2799) Chess.com INT 2021}) 10... Qb8 {[%emt 0:00:12]} 11. Bxc6 {[%emt 0:00:17]} bxc6 {[%emt 0:00:05]} 12. d4 {[%emt 0:00:04]} exd4 {[%emt 0:00:49]} 13. cxd4 {[%emt 0:00:07]} Bb6 {[%emt 0:02:04]} 14. a4 {[%emt 0:00:16]} Re8 {[%emt 0:09:34]} 15. Ra3 {[%emt 0:00:26] [#]} Qa7 $146 {[%emt 0:00:41]} ({Predecessor:} 15... Qb7 16. Rae3 Rab8 17. b3 Ba7 18. Bb2 d5 19. e5 Nd7 20. Nh4 c5 21. Rg3 Qa6 {1-0 (28) Giri,A (2780)-Anton Guijarro,D (2674) Batumi 2019 CBM 193 [Giri,A]}) 16. Nf1 {[%emt 0:00:24]} d5 {[%emt 0:00:24]} 17. e5 {[%emt 0:00:06]} Ne4 {[%emt 0:01:43]} 18. N1d2 $1 {[%emt 0:00:18]} Bf5 {[%emt 0:13:58]} 19. Re2 {[%emt 0:00:22]} Rad8 {[%emt 0:08:57]} 20. Nb3 $1 {[%emt 0:00:34]} c5 {[%emt 0:00:24]} 21. dxc5 {[%emt 0:01:26]} Bxc5 {[%emt 0:00:03]} 22. Nxc5 {[%emt 0:00:24]} Qxc5 {[%emt 0:00:03]} 23. Nd4 {[%emt 0:00:09]} Bd7 {[%emt 0:05:05]} (23... Rxe5 $2 24. Bf4 Re6 25. Nxf5 $18) 24. Bf4 {[%emt 0:00:32]} Qe7 {[%emt 0:15:19]} 25. Nb5 {[%emt 0:00:32]} Bxb5 {[%emt 0:13:37]} 26. axb5 {[%emt 0:00:35]} Ng5 {[%emt 0:00:02]} 27. Rxa5 {[%emt 0:21:11]} Ne6 {[%emt 0:01:37]} 28. Bd2 {[%emt 0:00:05]} d4 {[%emt 0:00:33][%cal Bd5d4,Bd4d3,Bd3d2][%mdl 32]} 29. Ra3 {[%emt 0:03:05]} Qc5 {[%emt 0:03:29]} 30. Rg3 {[%emt 0:50:31]} d3 {[%emt 0:00:18]} 31. Re1 {[%emt 0:02:47]} Qxb5 {[%emt 0:01:59]} 32. Qh5 {[%emt 0:01:10]} Qxb2 {[%emt 0:07:58]} 33. Bxh6 {[%emt 0:01:56][%cal Og3g7] [#] Intending Rxg7+! and mate.} ({Much worse is} 33. Qxh6 c5 34. Qe3 Rd4 $17) 33... d2 {[%emt 0:01:47]} (33... Qb4 $5 {[%cal Rb4e1]} 34. Rd1 Qe4 $17) 34. Rd1 {[%emt 0:00:14] The position is equal.} Rd5 {[%emt 0:11:21]} 35. Bxg7 {[%emt 0:08:13] Dancing on a razor blade.} Nxg7 {[%emt 0:00:04]} 36. Rxg7+ {[%emt 0:00:04]} Kxg7 {[%emt 0:00:03]} 37. Qg5+ {[%emt 0:00:05]} Kf8 {[%emt 0:00:06]} 38. Qh6+ {[%emt 0:00:03]} Kg8 {[%emt 0:00:05]} 39. Qg5+ {[%emt 0:00:03]} Kf8 {[%emt 0:00:04]} 40. Qh6+ {[%emt 0:00:00]} Ke7 {[%emt 0:00:00]} 41. Qf6+ {[%emt 0:00:07]} Kf8 {[%emt 0:06:29]} 42. Qh6+ {[%emt 0:00:51]} Kg8 {[%emt 0:00:13] An even fight not without its subleties.  Weighted Error Value: White=0.03 (flawless) /Black=0.01 (flawless)} 1/2-1/2

[Event "FIDE Candidates Tournament 2022"]
[Site "Madrid"]
[Date "2022.07.03"]
[Round "13.2"]
[White "Nakamura, Hikaru"]
[Black "Duda, Jan-Krzysztof"]
[Result "1-0"]
[ECO "B90"]
[WhiteElo "2760"]
[BlackElo "2750"]
[Annotator "TA"]
[PlyCount "103"]
[EventDate "2022.06.17"]
[EventType "tourn"]
[EventCountry "ESP"]
[SourceTitle "playchess.com"]
[Source "ChessBase"]
[SourceQuality "1"]
[TimeControl "40/7200:20/3600:900+30"]

{[%evp 13,103,9,7,0,18,24,20,0,16,0,21,0,0,0,15,0,14,44,43,0,19,0,0,4,11,0,5,0,0,0,12,-29,-39,-35,-45,-48,-35,-45,-42,-28,-28,-37,-10,-10,-16,-16,-13,-22,0,-85,-68,-101,-109,-94,22,19,25,13,32,24,59,-10,66,77,86,76,128,108,110,102,202,218,254,281,300,307,387,389,433,393,545,354,412,409,639,611,1603,1600,1381,1319,1087,1085]} 1. e4 {[%emt 0:00:03]} c5 {[%emt 0:00:05]} 2. Nf3 {[%emt 0:00:05]} d6 {[%emt 0:00:04]} 3. d4 {[%emt 0:00:08]} cxd4 {[%emt 0:00:05]} 4. Nxd4 {[%emt 0:00:05]} Nf6 {[%emt 0:00:05]} 5. Nc3 {[%emt 0:00:05]} a6 {[%emt 0:00:05]} 6. Be3 {[%emt 0:00:11]} e5 {[%emt 0:00:07]} 7. Nf3 {[%emt 0:00:05][%cal Bd4f3,Bf3h4,Bh4g6][%mdl 32]} Be7 {[%emt 0:00:15]} 8. h3 {[%emt 0:00:05] B90: Sicilian Najdorf: Unusual White 6th moves, 6 Be3 Ng4 and 6 Be3 e5.} h6 {[%emt 0:07:05] 8...Be6 is the modern continuation.} 9. Bc4 {[%emt 0:00:48]} Be6 {[%emt 0:04:29]} 10. Bb3 {[%emt 0:02:35] The position is equal.} Nc6 {[%emt 0:02:51] [#]} 11. Nh4 $146 {[%emt 0:06:31]} ({Predecessor:} 11. Nd5 Bxd5 12. Bxd5 O-O 13. c3 Qa5 14. b4 Qc7 15. O-O Bd8 16. Rc1 Rc8 17. a3 {0-1 (57) Hilby,C (2441)-Martinez Alcantara,J (2608) Charlotte 2021}) 11... Na5 {[%emt 0:13:17]} 12. Bxe6 {[%emt 0:03:00]} fxe6 {[%emt 0:00:19]} 13. Ng6 {[%emt 0:00:01]} Rg8 {[%emt 0:00:10]} 14. O-O {[%emt 0:16:22]} Nc4 {[%emt 0:10:12]} 15. Bc1 {[%emt 0:02:17]} Rc8 {[%emt 0:00:27]} 16. h4 {[%emt 0:03:24]} Rc6 {[%emt 0:08:33]} 17. Qf3 {[%emt 0:08:54]} Kf7 {[%emt 0:05:11]} 18. h5 {[%emt 0:00:20]} Qc7 {[%emt 0:00:36][%cal Oc4a3]} 19. Nd1 {[%emt 0:02:41]} Nb6 {[%emt 0:04:28]} 20. Ne3 {[%emt 0:06:52]} Nbd7 {[%emt 0:00:26]} 21. c4 {[%emt 0:01:24]} Nf8 {[%emt 0:01:05]} 22. Nh4 {[%emt 0:01:07]} N8h7 {[%emt 0:06:31]} 23. b3 {[%emt 0:00:41]} ({Don't play} 23. Qg3 Ng5 24. Nf3 (24. f4 exf4 25. Qxf4 Ke8 $17) 24... Nfxe4 25. Nxg5+ Bxg5 26. Qf3+ Nf6 $17) 23... Ng5 {[%emt 0:00:29][%csl LRe4,LRf3]} 24. Qe2 {[%emt 0:00:14]} Ngxe4 {[%emt 0:01:36]} ({But not} 24... Nfxe4 25. Ng4 $11) 25. Bb2 {[%emt 0:02:41]} Re8 {[%emt 0:02:21]} (25... d5 $2 26. cxd5 Nxd5 27. Ng6 $18 (27. Qg4 Nf4 $11)) 26. Ng6 {[%emt 0:02:11]} Kg8 {[%emt 0:01:45]} 27. Rad1 {[%emt 0:03:13]} a5 {[%emt 0:09:20]} (27... Qb6 $5 {[%cal Re7d8]}) 28. Ng4 {[%emt 0:08:45]} Bd8 {[%emt 0:04:43]} 29. Nxf6+ {[%emt 0:03:04]} Nxf6 {[%emt 0:00:02]} 30. Rd2 {[%emt 0:02:01]} Nd7 {[%emt 0:04:24]} 31. Rfd1 {[%emt 0:01:00]} (31. Ba3 $11) 31... Bg5 $17 {[%emt 0:00:12]} 32. Rd3 {[%emt 0:00:47]} b5 {[%emt 0:01:37]} 33. Ba3 {[%emt 0:11:15][%cal Bb2a3,Ba3d6,Bd6c7,Bc7a5,Ba5b4,Bb4d2][%mdl 32]} d5 {[%emt 0:10:23]} (33... b4 $17 34. Bb2 Nc5) 34. cxd5 $11 {[%emt 0:03:08]} Rc2 {[%emt 0:00:22] [#]} 35. Bd6 $1 $36 {[%emt 0:03:10][%mdl 2048] Black is under pressure.} Rxe2 {[%emt 0:07:04]} (35... Qc8 36. Qf3) 36. Bxc7 {[%emt 0:00:22]} Nc5 {[%emt 0:03:00]} 37. d6 {[%emt 0:03:38]} Nd7 {[%emt 0:00:14]} (37... Nxd3 $11 38. d7 {[#]} Ra8 $1 39. Rxd3 Rxa2 40. Nxe5 Ra1+ 41. Kh2 a4 42. bxa4 R1xa4) 38. Bxa5 $14 {[%emt 0:03:47] Strongly threatening Rc3.} Rxa2 {[%emt 0:00:14]} 39. Bb4 {[%emt 0:00:14]} Bd8 {[%emt 0:04:54]} ({Better is} 39... Rea8) 40. Rc3 $16 {[%emt 0:00:00] White is much more active.} Bb6 {[%emt 0:00:00]} 41. Kh2 {[%emt 0:10:19]} Kh7 {[%emt 0:14:34]} (41... Rxf2 $16 {was called for.} 42. Rc7 Rf7) 42. f3 $18 {[%emt 0:04:32]} Ra7 {[%emt 0:01:33]} 43. Rc6 {[%emt 0:04:09]} Be3 {[%emt 0:05:06]} 44. Bd2 {[%emt 0:02:04]} Bd4 {[%emt 0:02:19]} 45. Bc3 {[%emt 0:00:39]} Be3 {[%emt 0:06:30]} 46. Rc7 {[%emt 0:00:47]} Rea8 {[%emt 0:01:28]} 47. Kh3 {[%emt 0:00:06][%cal Od1a1] Hoping for Ra1!} b4 {[%emt 0:06:46]} 48. Bxb4 {[%emt 0:00:54]} Rb8 {[%emt 0:00:13]} (48... Bb6 $142 49. Rdc1 Bxc7 50. dxc7 Rc8) 49. Bc3 {[%emt 0:01:27] White is clearly winning.} Rxb3 {[%emt 0:00:30]} 50. Rc8 {[%emt 0:03:19][%csl Gg6][%cal Rc8h8]} Rb8 {[%emt 0:00:28]} 51. Rxb8 {[%emt 0:00:07]} Nxb8 {[%emt 0:00:04]} 52. d7 {[%emt 0:00:09] Weighted Error Value: White=0.15 (very precise) /Black=0.29 (precise)} 1-0